lending/lending_fUSD_20240219
["ID","MTS","AMOUNT","RATE_DAILY","PERIOD"]
[314461139,1708367469996,-500.0,0.00046849,30]
[314461140,1708367470005,-500.0,0.00046849,30]
[314461141,1708367470015,-500.0,0.00046849,30]
[314461142,1708367470025,-500.0,0.00046849,30]
[314461143,1708367470035,-500.0,0.00046849,30]
[314461144,1708367470045,-500.0,0.00046849,30]
[314461145,1708367470055,-500.0,0.00046849,30]
[314461146,1708367470065,-500.0,0.00046849,30]
[314461147,1708367470075,-500.0,0.00046849,30]
[314461148,1708367470085,-500.0,0.00046849,30]
[314461149,1708367470095,-500.0,0.00046849,30]
[314461150,1708367470104,-500.0,0.00046849,30]
[314461151,1708367470114,-500.0,0.00046849,30]
[314461152,1708367470123,-500.0,0.00046849,30]
[314461153,1708367470133,-500.0,0.00046849,30]
[314461154,1708367470143,-500.0,0.00046849,30]
[314461155,1708367470153,-500.0,0.00046849,30]
[314461156,1708367470163,-507.24115007,0.00046849,30]
[314461157,1708367470172,-500.0,0.00046849,30]
[314461158,1708367470182,-500.0,0.00046849,30]
[314461159,1708367470192,-512.62,0.00046849,30]
[314461160,1708367470202,-500.0,0.00046849,30]
[314461161,1708367470212,-500.0,0.00046849,30]
[314461162,1708367470222,-500.0,0.00046849,30]
[314461163,1708367470232,-500.0,0.00046849,30]
[314461164,1708367470242,-500.0,0.00046849,30]
[314461165,1708367470251,-500.0,0.00046849,30]
[314461166,1708367470261,-500.0,0.00046849,30]
[314461167,1708367470270,-500.0,0.00046849,30]
[314461168,1708367470281,-500.0,0.00046849,30]
[314461169,1708367470290,-500.0,0.00046849,30]
[314461170,1708367470299,-500.0,0.00046849,30]
[314461171,1708367470309,-500.0,0.00046849,30]
[314461172,1708367470319,-500.0,0.00046849,30]
[314461173,1708367470329,-508.02297654,0.00046849,30]
[314461174,1708367470339,-500.0,0.00046849,30]
[314461175,1708367470349,-500.0,0.00046849,30]
[314461176,1708367470359,-500.0,0.00046849,30]
[314461177,1708367470368,-500.0,0.00046849,30]
[314461178,1708367470378,-500.0,0.00046849,30]
[314461179,1708367470388,-500.0,0.00046849,30]
[314461180,1708367470397,-500.0,0.00046849,30]
[314461181,1708367470407,-500.0,0.00046849,30]
[314461182,1708367470416,-500.0,0.00046849,30]
[314461183,1708367470426,-500.0,0.00046849,30]
[314461184,1708367470435,-500.0,0.00046849,30]
[314461185,1708367470445,-500.0,0.00046849,30]
[314461186,1708367470455,-500.0,0.00046849,30]
[314461187,1708367470464,-500.0,0.00046849,30]
[314461188,1708367470477,-500.0,0.00046849,30]
[314461189,1708367470487,-500.0,0.00046849,30]
[314461190,1708367470498,-500.0,0.00046849,30]
[314461191,1708367470508,-225.15283308,0.00046849,30]
[314461192,1708367470517,-500.0,0.00046849,30]
[314461193,1708367470527,-500.0,0.00046849,30]
[314461194,1708367470537,-500.0,0.00046849,30]
[314461195,1708367470547,-500.0,0.00046849,30]
[314461196,1708367470557,-521.81,0.00046849,30]
[314461197,1708367470567,-500.0,0.00046849,30]
[314461198,1708367470576,-500.0,0.00046849,30]
[314461199,1708367470587,-500.0,0.00046849,30]
[314461200,1708367470596,-500.0,0.00046849,30]
[314461201,1708367470606,-500.0,0.00046849,30]
[314461202,1708367470616,-500.0,0.00046849,30]
[314461203,1708367470630,-500.0,0.00046849,30]
[314461204,1708367470640,-500.0,0.00046849,30]
[314461205,1708367470650,-500.0,0.00046849,30]
[314461206,1708367470659,-500.0,0.00046849,30]
[314461207,1708367470671,-500.0,0.00046849,30]
[314461208,1708367470681,-500.0,0.00046849,30]
[314461209,1708367470692,-502.17,0.00046849,30]
[314461210,1708367470704,-500.0,0.00046849,30]
[314461211,1708367470714,-500.0,0.00046849,30]
[314461212,1708367470723,-500.0,0.00046849,30]
[314461213,1708367470733,-500.0,0.00046849,30]
[314461214,1708367470743,-500.0,0.00046849,30]
[314461215,1708367470753,-517.02620349,0.00046849,30]
[314461216,1708367470763,-500.0,0.00046849,30]
[314461217,1708367470772,-529.55,0.00046849,30]
[314461218,1708367470782,-193.23305212,0.00046849,30]
[314461219,1708367470792,-1000.0,0.00046849,10]
[314461220,1708367470802,-500.0,0.00046849,2]
[314461221,1708367470811,-595.34,0.00046849,30]
[314461222,1708367470821,-500.0,0.00046849,30]
[314461223,1708367470830,-500.0,0.00046849,30]
[314461224,1708367470839,-500.0,0.00046849,30]
[314461225,1708367470849,-500.0,0.00046849,30]
[314461226,1708367470859,-500.0,0.00046849,30]
[314461227,1708367470868,-266.1648584,0.00046849,30]
[314461228,1708367470878,-500.0,0.00046849,30]
[314461229,1708367470888,-500.0,0.00046849,30]
[314461230,1708367470898,-534.91,0.00046849,30]
[314461231,1708367470907,-500.0,0.00046849,30]
[314461232,1708367471110,-500.0,0.00046849,30]
[314461233,1708367471119,-500.0,0.00046849,2]
[314461234,1708367471129,-500.0,0.00046849,30]
[314461235,1708367471138,-500.0,0.00046849,30]
[314461236,1708367471148,-500.0,0.00046849,30]
[314461237,1708367471157,-512.56937268,0.00046849,30]
[314461238,1708367471166,-500.0,0.00046849,30]
[314461239,1708367471176,-500.0,0.00046849,30]
[314461240,1708367471185,-500.0,0.00046849,30]
[314461241,1708367471195,-211.13535126,0.00046849,30]
[314461242,1708367471204,-500.0,0.00046849,30]
[314461243,1708367471214,-500.0,0.00046849,30]
[314461244,1708367471223,-177.6,0.00046849,30]
[314461245,1708367471233,-500.0,0.00046849,30]
[314461246,1708367471244,-500.0,0.00046849,30]
[314461247,1708367471254,-500.0,0.00046849,30]
[314461248,1708367471264,-500.0,0.00046849,30]
[314461249,1708367471273,-500.0,0.00046849,30]
[314461250,1708367471283,-278.06816743,0.00046849,30]
[314461251,1708367471292,-500.0,0.00046849,30]
[314461252,1708367471301,-878.71,0.00046849,30]
[314461253,1708367471311,-911.68,0.00046849,30]
[314461254,1708367471320,-500.0,0.00046849,30]
[314461255,1708367471330,-996.5,0.00046849,30]
[314461256,1708367471339,-500.0,0.00046849,30]
[314461257,1708367471349,-500.0,0.00046849,30]
[314461258,1708367471358,-1401.0,0.00046849,30]
[314461259,1708367471367,-500.0,0.00046849,30]
[314461260,1708367471377,-605.09,0.00046849,30]
[314461261,1708367471387,-500.0,0.00046849,30]
[314461262,1708367471397,-500.0,0.00046849,30]
[314461263,1708367471407,-795.9,0.00046849,30]
[314461264,1708367471416,-833.33,0.00046849,30]
[314461265,1708367471425,-1189.72,0.00046849,30]
[314461266,1708367471434,-500.0,0.00046849,30]
[314461267,1708367471444,-1184.58,0.00046849,30]
[314461268,1708367471454,-500.0,0.00046849,30]
[314461269,1708367471464,-771.94,0.00046849,30]
[314461270,1708367471474,-500.0,0.00046849,30]
[314461271,1708367471483,-500.0,0.00046849,30]
[314461272,1708367471494,-541.59,0.00046849,30]
[314461273,1708367471504,-500.0,0.00046849,30]
[314461274,1708367471513,-500.0,0.00046849,30]
[314461275,1708367471523,-1035.79,0.00046849,30]
[314461276,1708367471532,-500.0,0.00046849,30]
[314461277,1708367471542,-981.74,0.00046849,30]
[314461278,1708367471551,-500.0,0.00046849,30]
[314461279,1708367471561,-708.23,0.00046849,30]
[314461280,1708367471571,-500.0,0.00046849,30]
[314461281,1708367471580,-728.04,0.00046849,30]
[314461282,1708367471590,-500.0,0.00046849,30]
[314461283,1708367471600,-500.0,0.00046849,30]
[314461284,1708367471609,-500.0,0.00046849,30]
[314461285,1708367471619,-894.05,0.00046849,30]
[314461286,1708367471631,-500.0,0.00046849,2]
[314461287,1708367471642,-500.0,0.00046849,30]
[314461288,1708367471651,-500.0,0.00046849,30]
[314461289,1708367471661,-552.52,0.00046849,30]
[314461290,1708367471671,-649.84092015,0.00046849,30]
[314461291,1708367471681,-1836.25,0.00046849,2]
[314461292,1708367471690,-657.47,0.00046849,30]
[314461293,1708367471700,-500.0,0.00046849,30]
[314461294,1708367471713,-1097.73,0.00046849,30]
[314461295,1708367471723,-500.0,0.00046849,30]
[314461296,1708367471733,-895.83,0.00046849,30]
[314461297,1708367471743,-500.0,0.00046849,30]
[314461298,1708367471753,-500.0,0.00046849,30]
[314461299,1708367471763,-500.0,0.00046849,30]
[314461300,1708367471772,-500.0,0.00046849,30]
[314461301,1708367471782,-519.01,0.00046849,30]
[314461302,1708367471791,-500.0,0.00046849,30]
[314461303,1708367471800,-500.0,0.00046849,30]
[314461304,1708367471810,-664.24,0.00046849,30]
[314461305,1708367471819,-568.83380575,0.00046849,30]
[314461306,1708367471829,-500.0,0.00046849,30]
[314461307,1708367471838,-500.0,0.00046849,2]
[314461308,1708367471848,-500.0,0.00046849,30]
[314461309,1708367471857,-500.0,0.00046849,30]
[314461310,1708367471867,-500.0,0.00046849,30]
[314461311,1708367471878,-500.0,0.00046849,30]
[314461312,1708367471887,-500.0,0.00046849,30]
[314461313,1708367471897,-500.0,0.00046849,30]
[314461314,1708367471906,-500.0,0.00046849,30]
[314461315,1708367471915,-881.69,0.00046849,30]
[314461316,1708367471925,-500.0,0.00046849,30]
[314461317,1708367471934,-887.27,0.00046849,30]
[314461318,1708367471944,-500.0,0.00046849,30]
[314461319,1708367471953,-500.0,0.00046849,30]
[314461320,1708367471963,-895.83,0.00046849,30]
[314461321,1708367471973,-500.0,0.00046849,30]
[314461322,1708367471983,-666.26,0.00046849,30]
[314461323,1708367471992,-500.0,0.00046849,30]
[314461324,1708367472002,-784.01,0.00046849,30]
[314461325,1708367472012,-561.8,0.00046849,30]
[314461326,1708367472021,-500.0,0.00046849,30]
[314461327,1708367472031,-602.37,0.00046849,30]
[314461328,1708367472040,-500.0,0.00046849,30]
[314461329,1708367472050,-677.65,0.00046849,30]
[314461330,1708367472059,-1137.37,0.00046849,30]
[314461331,1708367472068,-869.73,0.00046849,30]
[314461332,1708367472077,-500.0,0.00046849,30]
[314461333,1708367472087,-1243.68,0.00046849,30]
[314461334,1708367472096,-280.51562914,0.00046849,30]
[314461335,1708367472105,-500.0,0.00046849,30]
[314461336,1708367472115,-500.0,0.00046849,30]
[314461337,1708367472124,-601.82498325,0.00046849,30]
[314461338,1708367472134,-896.23,0.00046849,30]
[314461339,1708367472145,-796.24,0.00046849,30]
[314461340,1708367472154,-500.0,0.00046849,30]
[314461341,1708367472164,-500.0,0.00046849,30]
[314461342,1708367472173,-500.0,0.00046849,30]
[314461343,1708367472183,-500.0,0.00046849,30]
[314461344,1708367472193,-636.51,0.00046849,30]
[314461345,1708367472203,-500.0,0.00046849,30]
[314461346,1708367472213,-935.55,0.00046849,30]
[314461347,1708367472223,-500.0,0.00046849,30]
[314461348,1708367472232,-564.79,0.00046849,30]
[314461349,1708367472242,-500.0,0.00046849,30]
[314461350,1708367472253,-500.0,0.00046849,30]
[314461351,1708367472262,-500.0,0.00046849,30]
[314461352,1708367472272,-521.36,0.00046849,30]
[314461353,1708367472282,-500.0,0.00046849,30]
[314461354,1708367472291,-500.0,0.00046849,30]
[314461355,1708367472301,-500.0,0.00046849,30]
[314461356,1708367472310,-500.0,0.00046849,30]
[314461357,1708367472319,-645.26,0.00046849,30]
[314461358,1708367472328,-500.0,0.00046849,30]
[314461359,1708367472338,-888.73,0.00046849,30]
[314461360,1708367472347,-500.0,0.00046849,30]
[314461361,1708367472357,-500.0,0.00046849,30]
[314461362,1708367472366,-500.0,0.00046849,30]
[314461363,1708367472375,-500.0,0.00046849,30]
[314461364,1708367472384,-500.0,0.00046849,30]
[314461365,1708367472394,-500.0,0.00046849,30]
[314461366,1708367472403,-528.92,0.00046849,30]
[314461367,1708367472412,-500.0,0.00046849,30]
[314461368,1708367472421,-636.32,0.00046849,30]
[314461369,1708367472431,-799.76,0.00046849,30]
[314461370,1708367472440,-500.0,0.00046849,30]
[314461371,1708367472450,-500.0,0.00046849,30]
[314461372,1708367472459,-500.0,0.00046849,30]
[314461373,1708367472468,-738.01,0.00046849,30]
[314461374,1708367472477,-500.0,0.00046849,30]
[314461375,1708367472486,-500.0,0.00046849,30]
[314461376,1708367472497,-868.1,0.00046849,30]
[314461377,1708367472507,-676.48,0.00046849,30]
[314461378,1708367472516,-980.78,0.00046849,30]
[314461379,1708367472525,-508.68,0.00046849,30]
[314461380,1708367472535,-761.06,0.00046849,30]
[314461381,1708367472544,-500.0,0.00046849,30]
[314461382,1708367472554,-500.0,0.00046849,30]
[314461383,1708367472563,-559.28,0.00046849,30]
[314461384,1708367472573,-500.0,0.00046849,30]
[314461385,1708367472583,-1244.69,0.00046849,30]
[314461386,1708367472593,-500.0,0.00046849,30]
[314461387,1708367472603,-907.83,0.00046849,30]
[314461388,1708367472613,-854.13,0.00046849,30]
[314461389,1708367472622,-500.0,0.00046849,30]
[314461390,1708367472636,-724.86,0.00046849,30]
[314461391,1708367472645,-500.0,0.00046849,30]
[314461392,1708367472655,-509.21600997,0.00046849,30]
[314461393,1708367472664,-500.0,0.00046849,30]
[314461394,1708367472674,-907.86,0.00046849,30]
[314461395,1708367472684,-500.0,0.00046849,30]
[314461396,1708367472693,-500.0,0.00046849,30]
[314461397,1708367472702,-503.65,0.00046849,30]
[314461398,1708367472714,-500.0,0.00046849,30]
[314461399,1708367472724,-1027.84,0.00046849,30]
[314461400,1708367472733,-500.0,0.00046849,30]
[314461401,1708367472743,-500.0,0.00046849,30]
[314461402,1708367472752,-500.0,0.00046849,30]
[314461403,1708367472762,-500.0,0.00046849,30]
[314461404,1708367472770,-905.12,0.00046849,30]
[314461405,1708367472779,-831.7,0.00046849,30]
[314461406,1708367472789,-500.0,0.00046849,30]
[314461407,1708367472798,-500.0,0.00046849,30]
[314461408,1708367472807,-500.0,0.00046849,30]
[314461409,1708367472816,-637.15,0.00046849,30]
[314461410,1708367472826,-519.52,0.00046849,30]
[314461411,1708367472834,-519.99232717,0.00046849,30]
[314461412,1708367472843,-183.93716328,0.00046849,30]
[314461413,1708367472853,-500.0,0.00046849,30]
[314461414,1708367472862,-500.0,0.00046849,30]
[314461415,1708367472871,-500.0,0.00046849,30]
[314461416,1708367472880,-532.42,0.00046849,30]
[314461417,1708367472889,-961.18,0.00046849,30]
[314461418,1708367472898,-490.49661032,0.00046849,30]
[314461419,1708367472908,-460.59059656,0.00046849,30]
[314461420,1708367472917,-500.0,0.00046849,30]
[314461421,1708367472927,-598.39,0.00046849,30]
[314461422,1708367472936,-562.47557229,0.00046849,30]
[314461423,1708367472945,-500.0,0.00046849,30]
[314461424,1708367472954,-500.0,0.00046849,30]
[314461425,1708367472963,-500.0,0.00046849,30]
[314461426,1708367472976,-1000.0,0.00046849,7]
[314461427,1708367472986,-556.77,0.00046849,30]
[314461428,1708367472996,-500.0,0.00046849,30]
[314461429,1708367473006,-500.0,0.00046849,30]
[314461430,1708367473015,-500.0,0.00046849,30]
[314461431,1708367473025,-500.0,0.00046849,30]
[314461432,1708367473034,-883.24,0.00046849,30]
[314461433,1708367473043,-500.0,0.00046849,30]
[314461434,1708367473053,-500.0,0.00046849,30]
[314461435,1708367473063,-693.5,0.00046849,30]
[314461436,1708367473073,-500.0,0.00046849,30]
[314461437,1708367473082,-1010.97,0.00046849,30]
[314461438,1708367473091,-808.95,0.00046849,30]
[314461439,1708367473101,-918.51,0.00046849,30]
[314461440,1708367473110,-500.0,0.00046849,30]
[314461441,1708367473119,-500.0,0.00046849,30]
[314461442,1708367473128,-500.0,0.00046849,30]
[314461443,1708367473137,-500.0,0.00046849,30]
[314461444,1708367473146,-500.0,0.00046849,30]
[314461445,1708367473155,-500.0,0.00046849,30]
[314461446,1708367473164,-500.0,0.00046849,30]
[314461447,1708367473173,-500.0,0.00046849,30]
[314461448,1708367473182,-930.71,0.00046849,30]
[314461449,1708367473192,-696.02,0.00046849,30]
[314461450,1708367473201,-500.0,0.00046849,2]
[314461451,1708367473210,-500.0,0.00046849,30]
[314461452,1708367473219,-796.74,0.00046849,30]
[314461453,1708367473228,-500.0,0.00046849,30]
[314461454,1708367473237,-500.0,0.00046849,30]
[314461455,1708367473247,-508.66,0.00046849,30]
[314461456,1708367473256,-500.0,0.00046849,30]
[314461457,1708367473266,-500.0,0.00046849,30]
[314461458,1708367473276,-500.0,0.00046849,30]
[314461459,1708367473285,-870.24,0.00046849,30]
[314461460,1708367473295,-500.0,0.00046849,30]
[314461461,1708367473304,-500.0,0.00046849,30]
[314461462,1708367473313,-500.0,0.00046849,30]
[314461463,1708367473322,-640.04,0.00046849,30]
[314461464,1708367473334,-991.1,0.00046849,30]
[314461465,1708367473343,-513.28,0.00046849,30]
[314461466,1708367473354,-500.0,0.00046849,30]
[314461467,1708367473362,-453.64852912,0.00046849,30]
[314461468,1708367473372,-500.0,0.00046849,30]
[314461469,1708367473381,-500.0,0.00046849,30]
[314461470,1708367473391,-500.0,0.00046849,30]
[314461471,1708367473400,-500.0,0.00046849,30]
[314461472,1708367473409,-676.86,0.00046849,30]
[314461473,1708367473418,-818.02,0.00046849,30]
[314461474,1708367473428,-7601.74,0.00046849,30]
[314461475,1708367473437,-915.94,0.00046849,30]
[314461476,1708367473447,-500.0,0.00046849,30]
[314461477,1708367473457,-500.0,0.00046849,30]
[314461478,1708367473466,-500.0,0.00046849,30]
[314461479,1708367473476,-500.0,0.00046849,30]
[314461480,1708367473485,-500.0,0.00046849,30]
[314461481,1708367473494,-500.0,0.00046849,30]
[314461482,1708367473504,-500.0,0.00046849,30]
[314461483,1708367473513,-715.9,0.00046849,30]
[314461484,1708367473589,-500.0,0.00046849,30]
[314461485,1708367473598,-500.0,0.00046849,30]
[314461486,1708367473607,-2000.0,0.00046849,30]
[314461487,1708367473617,-500.0,0.00046849,30]
[314461488,1708367473627,-10000.0,0.00046849,30]
[314461489,1708367473640,-500.0,0.00046849,30]
[314461490,1708367473650,-500.0,0.00046849,30]
[314461491,1708367473659,-516.38,0.00046849,30]
[314461492,1708367473669,-500.0,0.00046849,30]
[314461493,1708367473678,-500.0,0.00046849,30]
[314461494,1708367473688,-500.0,0.00046849,30]
[314461495,1708367473697,-500.0,0.00046849,30]
[314461496,1708367473707,-500.0,0.00046849,30]
[314461497,1708367473717,-500.0,0.00046849,30]
[314461498,1708367473727,-500.0,0.00046849,30]
[314461499,1708367473736,-521.07530971,0.00046849,30]
[314461500,1708367473746,-515.07792309,0.00046849,30]
[314461501,1708367473755,-500.0,0.00046849,30]
[314461502,1708367473764,-630.29,0.00046849,30]
[314461503,1708367473774,-500.0,0.00046849,30]
[314461504,1708367473783,-500.0,0.00046849,30]
[314461505,1708367473792,-500.0,0.00046849,30]
[314461506,1708367473802,-500.0,0.00046849,30]
[314461507,1708367473812,-755.66,0.00046849,30]
[314461508,1708367473822,-883.79,0.00046849,30]
[314461509,1708367473831,-500.0,0.00046849,30]
[314461510,1708367473839,-500.0,0.00046849,30]
[314461511,1708367473848,-500.0,0.00046849,30]
[314461512,1708367473858,-944.12,0.00046849,30]
[314461513,1708367473867,-500.0,0.00046849,30]
[314461514,1708367473876,-743.35,0.00046849,30]
[314461515,1708367473885,-500.0,0.00046849,30]
[314461516,1708367473894,-268.72388037,0.00046849,30]
[314461517,1708367473903,-500.0,0.00046849,30]
[314461518,1708367473912,-500.0,0.00046849,30]
[314461519,1708367473921,-675.58,0.00046849,30]
[314461520,1708367473931,-500.0,0.00046849,30]
[314461521,1708367473941,-769.59,0.00046849,30]
[314461522,1708367473950,-668.02,0.00046849,30]
[314461523,1708367473959,-500.0,0.00046849,30]
[314461524,1708367473969,-500.0,0.00046849,30]
[314461525,1708367473982,-1530.03,0.00046849,30]
[314461526,1708367473991,-500.0,0.00046849,30]
[314461527,1708367474002,-500.0,0.00046849,7]
[314461528,1708367474012,-500.0,0.00046849,30]
[314461529,1708367474021,-500.0,0.00046849,30]
[314461530,1708367474030,-529.82270421,0.00046849,30]
[314461531,1708367474039,-500.0,0.00046849,30]
[314461532,1708367474049,-500.0,0.00046849,30]
[314461533,1708367474059,-500.0,0.00046849,30]
[314461534,1708367474068,-994.32,0.00046849,30]
[314461535,1708367474077,-500.0,0.00046849,30]
[314461536,1708367474088,-837.23,0.00046849,30]
[314461537,1708367474097,-921.34,0.00046849,30]
[314461538,1708367474106,-500.0,0.00046849,30]
[314461539,1708367474115,-500.0,0.00046849,30]
[314461540,1708367474124,-500.0,0.00046849,30]
[314461541,1708367474133,-500.0,0.00046849,30]
[314461542,1708367474142,-500.0,0.00046849,30]
[314461543,1708367474151,-500.0,0.00046849,30]
[314461544,1708367474159,-500.0,0.00046849,30]
[314461545,1708367474168,-500.0,0.00046849,30]
[314461546,1708367474177,-996.59,0.00046849,30]
[314461547,1708367474186,-507.5912997,0.00046849,30]
[314461548,1708367474195,-241.79,0.00046849,30]
[314461549,1708367474204,-741.56,0.00046849,30]
[314461550,1708367474213,-500.0,0.00046849,30]
[314461551,1708367474221,-529.32751428,0.00046849,30]
[314461552,1708367474230,-500.0,0.00046849,30]
[314461553,1708367474239,-650.32,0.00046849,30]
[314461554,1708367474248,-500.0,0.00046849,30]
[314461555,1708367474257,-500.0,0.00046849,30]
[314461556,1708367474267,-879.81,0.00046849,30]
[314461557,1708367474276,-516.66,0.00046849,30]
[314461558,1708367474285,-483.32365163,0.00046849,30]
[314461559,1708367474294,-500.0,0.00046849,30]
[314461560,1708367474304,-846.88,0.00046849,30]
[314461561,1708367474313,-500.0,0.00046849,30]
[314461562,1708367474322,-500.0,0.00046849,30]
[314461563,1708367474331,-508.15613674,0.00046849,30]
[314461564,1708367474341,-1040.51,0.00046849,30]
[314461565,1708367474350,-605.6,0.00046849,30]
[314461566,1708367474360,-1060.59,0.00046849,30]
[314461567,1708367474369,-500.0,0.00046849,30]
[314461568,1708367474378,-500.0,0.00046849,30]
[314461569,1708367474387,-500.0,0.00046849,30]
[314461570,1708367474396,-775.55,0.00046849,30]
[314461571,1708367474405,-500.0,0.00046849,30]
[314461572,1708367474414,-763.74,0.00046849,30]
[314461573,1708367474423,-500.0,0.00046849,30]
[314461574,1708367474431,-525.16912307,0.00046849,30]
[314461575,1708367474440,-824.49,0.00046849,30]
[314461576,1708367474449,-308.78763121,0.00046849,30]
[314461577,1708367474459,-500.0,0.00046849,30]
[314461578,1708367474468,-500.0,0.00046849,30]
[314461579,1708367474477,-500.0,0.00046849,30]
[314461580,1708367474487,-500.0,0.00046849,30]
[314461581,1708367474496,-500.0,0.00046849,30]
[314461582,1708367474506,-500.0,0.00046849,30]
[314461583,1708367474516,-500.0,0.00046849,30]
[314461584,1708367474525,-958.33,0.00046849,30]
[314461585,1708367474535,-888.87,0.00046849,30]
[314461586,1708367474545,-1736.91,0.00046849,30]
[314461587,1708367474555,-500.0,0.00046849,30]
[314461588,1708367474564,-534.77782647,0.00046849,30]
[314461589,1708367474573,-500.0,0.00046849,30]
[314461590,1708367474582,-500.0,0.00046849,30]
[314461591,1708367474591,-524.09417532,0.00046849,30]
[314461592,1708367474601,-500.0,0.00046849,30]
[314461593,1708367474610,-500.0,0.00046849,30]
[314461594,1708367474620,-500.0,0.00046849,30]
[314461595,1708367474634,-929.8,0.00046849,30]
[314461596,1708367474643,-500.0,0.00046849,30]
[314461597,1708367474652,-620.04,0.00046849,30]
[314461598,1708367474661,-500.0,0.00046849,30]
[314461599,1708367474670,-500.0,0.00046849,30]
[314461600,1708367474681,-500.0,0.00046849,30]
[314461601,1708367474690,-2290.36,0.00046849,30]
[314461602,1708367474700,-728.29,0.00046849,30]
[314461603,1708367474711,-500.0,0.00046849,30]
[314461604,1708367474720,-500.0,0.00046849,30]
[314461605,1708367474730,-810.91,0.00046849,30]
[314461606,1708367474739,-500.0,0.00046849,30]
[314461607,1708367474748,-500.0,0.00046849,30]
[314461608,1708367474757,-2673.99,0.00046849,30]
[314461609,1708367474767,-500.0,0.00046849,30]
[314461610,1708367474776,-500.0,0.00046849,30]
[314461611,1708367474785,-500.0,0.00046849,30]
[314461612,1708367474794,-500.0,0.00046849,30]
[314461613,1708367474803,-2868.61,0.00046849,30]
[314461614,1708367474813,-506.44339506,0.00046849,30]
[314461615,1708367474822,-516.96683011,0.00046849,30]
[314461616,1708367474831,-1647.68,0.00046849,30]
[314461617,1708367474840,-922.14,0.00046849,30]
[314461618,1708367474849,-500.0,0.00046849,30]
[314461619,1708367474858,-500.0,0.00046849,30]
[314461620,1708367474868,-500.0,0.00046849,30]
[314461621,1708367474877,-500.0,0.00046849,30]
[314461622,1708367474886,-500.0,0.00046849,30]
[314461623,1708367474895,-402.89939423,0.00046849,30]
[314461624,1708367474904,-844.91,0.00046849,30]
[314461625,1708367474913,-2917.53,0.00046849,30]
[314461626,1708367474923,-500.0,0.00046849,30]
[314461627,1708367474932,-500.0,0.00046849,30]
[314461628,1708367474941,-778.12,0.00046849,30]
[314461629,1708367474951,-500.0,0.00046849,30]
[314461630,1708367474960,-500.0,0.00046849,30]
[314461631,1708367474969,-500.0,0.00046849,30]
[314461632,1708367474979,-664.12,0.00046849,2]
[314461633,1708367474989,-368.75204984,0.00046849,30]
[314461634,1708367474998,-500.0,0.00046849,30]
[314461635,1708367475008,-500.0,0.00046849,30]
[314461636,1708367475017,-500.0,0.00046849,30]
[314461637,1708367475026,-500.0,0.00046849,30]
[314461638,1708367475035,-500.0,0.00046849,30]